bitfinex/quotes_ETHUSD_20220215
["timestamp","ask_amount","ask_price","bid_price","bid_amount"]
[1644900487021,0.8284891,3018.0,3017.5,1.0749394]
[1644900487221,0.83565557,3018.0,3017.5,1.08528634]
[1644900487970,1.66424557,3018.0,3017.5,1.08528634]
[1644900488267,2.4856994,3017.9,3017.5,1.0749394]
[1644900488466,2.4856994,3017.9,3017.5,1.08528634]
[1644900489366,0.8285665,3017.9,3017.5,1.0749394]
[1644900489566,0.8285665,3017.9,3017.5,1.08528631]
[1644900490571,1.36627212,3017.8,3017.6,0.07033495]
[1644900492516,0.8285665,3017.9,3017.6,0.07033495]
[1644900492719,1.3664598,3017.8,3017.6,0.07033495]
[1644900493320,1.3664598,3017.8,3017.5,0.01034691]
[1644900493518,1.3664598,3017.8,3017.6,0.07033495]
[1644900494520,1.3664598,3017.8,3017.7,0.07033495]
[1644900494718,1.3664598,3017.8,3017.5,0.01034691]
[1644900494719,1.3664598,3017.8,3017.6,0.07033495]
[1644900494963,1.3664598,3017.8,3017.7,0.07033495]
[1644900495769,1.3664598,3017.8,3017.5,0.01034694]
[1644900495963,1.3664598,3017.8,3017.6,0.07033495]
[1644900496765,1.3664598,3017.8,3017.7,0.07033495]
[1644900497565,1.3664598,3017.8,3017.6,0.07033495]
[1644900497765,1.3664598,3017.8,3017.7,0.07033752]
[1644900497966,3.023601,3017.8,3017.4,0.07033687]
[1644900498167,3.023601,3017.8,3017.5,0.08068518]
[1644900498168,1.3664598,3017.7,3017.5,0.08068518]
[1644900498369,1.3664598,3017.7,3017.5,0.01034694]
[1644900498566,1.3664598,3017.7,3017.6,0.07034101]
[1644900498826,0.14859558,3017.4,3017.1,0.0056387]
[1644900499025,2.1952198,3017.3,3017.2,0.07034732]
[1644900499427,2.1952198,3017.3,3017.0,0.07034732]
[1644900499624,1.3664598,3017.2,3017.1,0.07034732]
[1644900500029,0.8287378,3017.3,3017.0,0.89895732]
[1644900500225,0.14859558,3017.4,3017.1,0.07598602]
[1644900500426,1.36420203,3017.3,3017.2,0.07034732]
[1644900500825,1.36420203,3017.3,3017.0,0.07034732]
[1644900501031,0.14859558,3017.4,3017.0,0.07034732]
[1644900501226,0.828627,3017.3,3017.0,0.07034732]
[1644900502867,0.828627,3017.3,3017.0,0.08069572]
[1644900503069,0.828627,3017.3,3017.1,0.07034732]
[1644900503769,2.19367324,3017.2,3017.1,0.07034732]
[1644900503968,3.02243324,3017.2,3017.1,0.07034732]
[1644900504167,2.19367324,3017.2,3017.0,0.08069559]
[1644900504370,0.82876,3017.2,3017.1,0.07034732]
[1644900504669,1.36521329,3017.2,3017.1,0.07034732]
[1644900505269,1.36521329,3017.2,3016.9,0.0056387]
[1644900505270,2.19388039,3017.2,3017.0,0.08069572]
[1644900505470,0.8286671,3017.2,3017.1,0.07034732]
[1644900505672,1.36572963,3017.2,3017.1,0.07034732]
[1644900505870,0.14859558,3017.4,3017.1,0.07034732]
[1644900506079,1.36566884,3017.3,3017.1,0.89894732]
[1644900506321,2.19428844,3017.3,3017.2,0.07034732]
[1644900507723,2.19428844,3017.3,3017.1,0.01034813]
[1644900507922,1.36566884,3017.2,3017.1,0.01034813]
[1644900508122,1.36566884,3017.2,3017.1,0.08069341]
[1644900508627,0.8286196,3017.3,3017.1,0.07034528]
[1644900508822,0.8286196,3017.3,3017.2,0.07034528]
[1644900509024,2.19435571,3017.3,3017.2,0.07034528]
[1644900511368,3.02304571,3017.3,3017.1,0.01034813]
[1644900511568,0.8286196,3017.3,3017.2,0.07034528]
[1644900511767,2.19512831,3017.3,3017.2,0.07034528]
[1644900512369,2.19512831,3017.3,3016.7,0.0056387]
[1644900512570,2.19529871,3017.2,3017.1,0.01034813]
[1644900512770,2.19529871,3017.2,3017.1,0.0807001]
[1644900513570,2.19529871,3017.2,3017.1,0.07035197]
[1644900513571,3.02408871,3017.2,3017.1,0.07035197]
[1644900513821,3.02408871,3017.2,3017.0,0.0103484]
[1644900514017,0.82879,3017.2,3017.1,0.07035197]
[1644900514217,2.19507538,3017.2,3017.1,0.07035197]
[1644900514820,3.02387538,3017.2,3017.1,0.07035197]
[1644900515116,2.19507538,3017.2,3017.1,0.07035197]
[1644900516118,3.02384538,3017.2,3017.0,0.0103484]
[1644900516321,2.4863386,3017.2,3017.1,0.07035197]
[1644900516518,3.02370629,3017.2,3017.1,0.07035197]
[1644900518365,3.85249859,3017.2,3016.7,0.07035197]
[1644900518565,2.19494629,3017.1,3017.0,0.0103484]
[1644900518765,2.19494629,3017.1,3017.0,0.08070037]
[1644900519365,2.19494629,3017.1,3017.0,0.07035197]
[1644900519564,3.02373229,3017.1,3016.9,0.07035197]
[1644900519764,1.36614629,3017.0,3016.9,0.08070064]
[1644900520666,2.19496629,3017.0,3016.9,0.07035197]
[1644900521069,2.19358158,3017.0,3016.9,0.07035197]
[1644900522118,0.8288117,3016.9,3016.4,0.0056387]
[1644900522318,1.6576317,3016.9,3016.5,1.07826147]
[1644900522519,0.82882,3016.9,3016.6,0.0056387]
[1644900523519,0.8288117,3016.8,3016.6,0.0056387]
[1644900523721,0.74593054,3016.8,3016.6,0.0056387]
[1644900525575,2.800171,3017.3,3016.6,0.8343987]
[1644900525774,1.1427,3017.3,3016.7,0.0056387]
[1644900526783,0.8286713,3017.2,3016.7,0.0056387]
[1644900526975,0.8286713,3017.2,3017.1,0.95610347]
[1644900527375,0.97729558,3017.4,3017.1,0.95610347]
[1644900527976,0.8286941,3017.3,3017.1,0.95610347]
[1644900528279,0.8286941,3017.3,3017.1,0.96644367]
[1644900528478,3.3148397,3017.3,3017.1,0.96644367]
[1644900529132,3.3148397,3017.3,3017.1,0.95610347]
[1644900530535,3.3148397,3017.3,3017.0,0.01034034]
[1644900530735,0.8288,3017.1,3017.0,0.01034034]
[1644900530936,1.6576,3017.1,3017.0,0.01034034]
[1644900531536,3.3151659,3017.1,3017.0,0.83735109]
[1644900531736,2.4863659,3017.1,3017.0,0.84298979]
[1644900532337,1.6575659,3017.1,3017.0,0.84298979]
[1644900533770,0.14859558,3017.4,3017.0,4.34298979]
[1644900533969,0.14859558,3017.4,3017.1,0.8341587]
[1644900534369,0.14859558,3017.4,3017.1,1.6626987]
[1644900535067,0.14859558,3017.4,3017.2,0.82847]
[1644900535270,0.14859558,3017.4,3017.2,1.65695]
[1644900535669,0.14859558,3017.4,3017.2,3.28462244]
[1644900535869,0.14859558,3017.4,3017.3,3.35090938]
[1644900536070,0.14859558,3017.4,3017.3,4.80704182]
[1644900536517,0.14859558,3017.4,3017.3,4.17936938]
[1644900536917,0.14859558,3017.4,3017.3,4.0721738]
[1644900537117,0.14859558,3017.4,3017.3,4.69984624]
[1644900537320,0.14859558,3017.4,3017.3,5.20487866]
[1644900537923,0.14859558,3017.4,3017.3,4.20487866]
[1644900538919,0.14859558,3017.4,3017.3,5.20487866]
[1644900539119,0.14859558,3017.4,3017.3,4.20487866]
[1644900539418,0.14859558,3017.4,3017.3,5.20487866]
[1644900539617,0.14859558,3017.4,3017.3,4.20487866]
[1644900540690,0.14859558,3017.4,3017.3,5.20487866]
[1644900541089,0.14859558,3017.4,3017.3,5.27521029]
[1644900544520,0.1477466,3017.4,3017.3,5.27521029]
[1644900546021,0.1477466,3017.4,3017.3,1.89879163]
[1644900546220,0.1477466,3017.4,3017.3,5.08621568]
[1644900550572,0.1477466,3017.4,3017.3,5.08621608]
[1644900559022,0.1477466,3017.4,3017.3,5.13481638]
[1644900559223,0.1477466,3017.4,3017.3,1.89879203]
[1644900561025,0.1477466,3017.4,3017.3,0.89879203]
[1644900563371,0.1477466,3017.4,3017.3,0.07033203]
[1644900565974,0.1477466,3017.4,3017.3,0.89894203]
[1644900567417,0.1477466,3017.4,3017.3,0.07033203]
[1644900569020,1.50467078,3017.4,3017.3,0.07033203]
[1644900570068,0.1477466,3017.4,3017.3,0.07033203]
[1644900570268,0.9764211,3017.4,3017.3,0.07033203]
[1644900570470,2.3344505,3017.4,3017.3,0.07033203]
[1644900570869,2.1867039,3017.4,3017.3,0.07033203]
[1644900571268,0.8286745,3017.4,3017.3,0.07033203]
[1644900571470,2.18648867,3017.4,3017.3,0.07033203]
[1644900573744,2.18648867,3017.4,3017.2,0.00925954]
[1644900573944,3.01535787,3017.3,3017.2,0.00925954]
[1644900574341,1.35781417,3017.3,3017.2,0.07960717]
[1644900574741,1.35781417,3017.3,3017.2,0.07034763]
[1644900576143,2.18649447,3017.3,3017.1,0.07960742]
[1644900576348,0.8286803,3017.3,3017.2,0.07034763]
[1644900576545,2.18555416,3017.3,3017.2,0.07034763]
[1644900577568,2.18555416,3017.3,3017.1,0.07034763]
[1644900577767,0.8286803,3017.3,3017.2,0.07034763]
[1644900578468,2.18645094,3017.3,3017.2,0.07034763]
[1644900579870,2.18645094,3017.3,3017.1,0.07971222]
[1644900580071,0.8286803,3017.3,3017.2,0.07034763]
[1644900580270,2.18602117,3017.3,3017.2,0.07034763]
[1644900583437,3.01474117,3017.3,3017.2,0.07034763]
[1644900583638,3.01477157,3017.3,3017.2,0.07034763]
[1644900583838,1.35734087,3017.3,3017.2,0.07034763]
[1644900584641,1.35734087,3017.3,3017.1,0.07968336]
[1644900584841,2.18604027,3017.3,3017.2,0.07034763]
[1644900585876,3.01478027,3017.3,3017.1,0.0796879]
[1644900586074,0.8286994,3017.3,3017.2,0.07034763]
[1644900586274,2.18475279,3017.3,3017.2,0.07034763]
[1644900587075,3.01352279,3017.3,3017.1,0.0796879]
[1644900587275,0.8286994,3017.3,3017.2,0.07034763]
[1644900587475,2.1961857,3017.3,3017.1,0.00934027]
[1644900587677,1.65748,3017.4,3016.7,0.0056387]
[1644900587678,0.02121134,3016.9,3016.7,0.0056387]
[1644900587875,0.02121134,3016.9,3016.8,0.07035735]
[1644900588277,1.38808282,3016.9,3016.4,0.07035735]
[1644900588475,1.38808282,3016.9,3016.5,0.07035735]
[1644900588476,0.02121134,3016.9,3016.5,0.07035735]
[1644900588723,0.85007134,3016.9,3016.6,0.07035735]
[1644900588922,2.50785424,3016.9,3016.7,0.07035735]
[1644900589125,2.50785424,3016.9,3016.8,0.07035735]
[1644900589126,4.16558424,3016.9,3016.8,0.07035735]
[1644900589334,4.69364696,3016.9,3016.8,0.07035735]
[1644900589524,2.20700406,3016.9,3016.6,0.00934763]
[1644900589724,2.20700406,3016.9,3016.7,0.07035735]
[1644900589725,0.02121134,3016.9,3016.7,0.07035735]
[1644900590727,0.02121134,3016.9,3016.8,0.07035735]
[1644900591126,1.37746184,3016.9,3016.8,0.07035735]
[1644900591327,1.37746184,3016.9,3016.7,0.07035735]
[1644900591526,0.85006134,3016.9,3016.8,0.07035735]
[1644900591726,2.20695144,3016.9,3016.8,0.07035735]
[1644900591932,2.20693874,3016.9,3016.6,0.00933955]
[1644900592127,0.85004864,3016.9,3016.7,0.07035735]
[1644900592773,0.02121134,3016.9,3016.7,0.07035735]
[1644900592982,0.02121134,3016.9,3016.7,1.65738]
[1644900593169,0.02121134,3016.9,3016.8,0.07035735]
[1644900593370,0.02121134,3016.9,3016.8,0.07599605]
[1644900593770,0.02121134,3016.9,3016.8,0.07035735]
[1644900594070,0.02121134,3016.9,3016.8,0.07599605]
[1644900596074,0.02121134,3016.9,3016.8,0.90470605]
[1644900604522,0.02121134,3016.9,3016.8,0.07599605]
[1644900604523,1.38103637,3016.9,3016.8,0.07599605]
[1644900604724,1.38103637,3016.9,3016.8,0.07036197]
[1644900604922,1.38103637,3016.9,3016.0,0.0056387]
[1644900604923,2.21005637,3016.9,3016.0,0.0056387]
[1644900605128,2.21005637,3016.9,3016.7,0.00982997]
[1644900605129,1.35982503,3016.8,3016.7,0.00982997]
[1644900605727,1.35982503,3016.8,3016.7,0.0801926]
[1644900606024,1.35982503,3016.8,3016.7,0.07600133]
[1644900606225,1.35982503,3016.8,3016.7,0.07036263]
[1644900607472,2.18864323,3016.8,3016.6,0.00963745]
[1644900607675,0.8288182,3016.8,3016.7,0.07036263]
[1644900607871,2.18820483,3016.8,3016.7,0.07036263]
[1644900608073,5.41406319,3016.8,3016.7,0.07036263]
[1644900608275,5.48805899,3016.8,3016.7,0.07036263]
[1644900608872,6.31698899,3016.8,3016.7,0.07036263]
[1644900609075,7.22110014,3016.8,3016.7,0.07036263]
[1644900609372,5.48805899,3016.8,3016.7,0.07036263]
[1644900609575,2.18820483,3016.8,3016.7,0.07036263]
[1644900609774,2.18820483,3016.8,3016.4,0.07036263]
[1644900609974,0.8288182,3016.8,3016.6,0.00963745]
[1644900610376,1.36013936,3016.7,3016.6,0.00963745]
[1644900610977,1.36013936,3016.7,3016.6,0.0703606]
[1644900611419,0.82748862,3016.8,3016.6,0.0703606]
[1644900611620,1.36095091,3016.7,3016.6,0.0703606]
[1644900611819,4.62251071,3016.7,3016.6,0.0703606]
[1644900612218,4.62251071,3016.7,3016.2,0.0703606]
[1644900612419,1.36095091,3016.6,3016.5,0.00965071]
[1644900612619,5.49713548,3016.6,3016.5,0.08001131]
[1644900612821,2.18984061,3016.6,3016.5,0.08001131]
[1644900613318,2.18984061,3016.6,3016.5,0.0703606]
[1644900613718,2.189673,3016.6,3016.5,0.0703606]
[1644900613918,0.60992241,3016.6,3016.5,0.0703606]
[1644900614519,1.97441322,3016.6,3016.5,0.0703606]
[1644900614719,1.97441322,3016.6,3016.4,0.00965096]
[1644900614968,5.64500673,3016.6,3016.5,0.0703606]
[1644900615270,7.17353323,3016.6,3016.5,0.0703606]
[1644900615870,1.65794,3016.5,3015.9,0.63331114]
[1644900616071,1.65794,3016.5,3016.4,0.00965009]
[1644900616269,0.82897,3016.5,3016.4,0.00965009]
[1644900616471,2.44241837,3016.6,3016.4,0.0800108]
[1644900616472,1.61344837,3016.6,3016.4,0.0800108]
[1644900616670,0.60992241,3016.6,3016.5,0.07036071]
[1644900617371,1.6868,3016.8,3016.3,0.00965021]
[1644900617572,1.36438476,3016.7,3016.4,0.07036071]
[1644900617772,2.2833722,3016.7,3016.4,0.07036071]
[1644900618075,3.3445907,3016.8,3016.4,0.07036071]
[1644900618272,1.36437778,3016.7,3016.5,0.07036071]
[1644900618473,2.19321018,3016.7,3016.5,0.07036071]
[1644900618718,0.8288324,3016.7,3016.5,0.07036071]
[1644900619117,1.36422197,3016.6,3016.5,0.07036071]
[1644900619518,1.36422197,3016.6,3016.3,0.07036071]
[1644900619719,1.36422197,3016.6,3016.4,0.00965003]
[1644900619921,1.6577124,3016.7,3016.5,0.07036071]
[1644900620121,1.36414378,3016.6,3016.5,0.07036071]
[1644900620322,1.6577124,3016.7,3016.5,0.07036071]
[1644900620724,1.6577124,3016.7,3016.6,0.07036071]
[1644900620918,3.02185029,3016.7,3016.6,0.07036071]
[1644900621120,2.19285029,3016.7,3016.5,0.07036071]
[1644900621318,2.19285029,3016.7,3016.4,0.00965015]
[1644900621319,0.8287124,3016.7,3016.6,0.07036071]
[1644900621519,1.36415771,3016.7,3016.5,0.07036071]
[1644900621718,1.67887134,3016.9,3016.6,0.07036071]
[1644900621919,1.36424008,3016.8,3016.5,0.08001061]
[1644900622121,1.36424008,3016.8,3016.6,0.07036071]
[1644900622469,7.08106,3016.8,3016.6,0.07036071]
[1644900622670,1.36424008,3016.7,3016.6,0.07036071]
[1644900623170,2.19312008,3016.7,3016.6,0.07036071]
[1644900624370,2.19312008,3016.7,3016.5,0.0096499]
[1644900624571,0.82888,3016.7,3016.6,0.07036071]
[1644900624769,2.19325489,3016.7,3016.6,0.07036071]
[1644900625772,3.02215959,3016.7,3016.6,0.07036071]
[1644900626522,2.19325489,3016.7,3016.6,0.07036071]
[1644900627525,1.36437489,3016.7,3016.6,0.07036071]
[1644900628026,1.36437489,3016.7,3016.5,0.0096499]
[1644900628227,0.85005904,3016.9,3016.6,0.07036071]
[1644900628426,1.36530934,3016.8,3016.6,0.07036071]
[1644900628630,2.19420934,3016.8,3016.6,0.07036071]
[1644900628827,1.36530934,3016.7,3016.6,0.07036071]
[1644900629031,5.1,3016.6,3016.2,0.0056387]
[1644900629229,5.1,3016.6,3015.6,0.25]
[1644900629230,5.1,3016.6,3015.9,0.0056387]
[1644900629231,2.14030934,3016.5,3015.9,0.0056387]
[1644900629528,0.82913,3016.3,3016.0,0.07037302]
[1644900629728,1.84030934,3016.2,3016.1,0.07037302]
[1644900629971,1.84030934,3016.2,3015.8,0.07037302]
[1644900630170,0.475,3016.2,3015.8,0.07037302]
[1644900630372,2.4869141,3016.6,3016.0,0.00965115]
[1644900630572,1.36657931,3016.5,3016.1,0.07037302]
[1644900630770,2.19552931,3016.5,3016.1,0.07037302]
[1644900630970,1.36657931,3016.4,3016.1,0.07037302]
[1644900631574,1.1688,3016.7,3016.2,0.07037302]
[1644900631772,1.1688,3016.7,3016.3,0.82872]
[1644900631973,0.02121134,3016.9,3016.4,0.07601172]
[1644900632173,1.36660924,3016.8,3016.5,0.07037302]
[1644900632374,4.80392,3016.7,3016.5,0.07037302]
[1644900632573,1.36660924,3016.6,3016.5,0.07037302]
[1644900632772,1.84160924,3016.6,3016.3,0.07037302]
[1644900632971,0.475,3016.6,3016.5,0.00964991]
[1644900633170,0.475,3016.6,3016.5,0.08002293]
[1644900633371,2.67036755,3016.6,3016.5,0.08002293]
[1644900633824,2.67036755,3016.6,3016.5,0.07037302]
[1644900634020,0.12894472,3016.4,3016.2,0.0056387]
[1644900634221,0.12894472,3016.4,3016.3,0.07036636]
[1644900634621,4.8549262,3016.4,3016.0,0.07036636]
[1644900634822,1.35613023,3016.3,3016.1,0.07036636]
[1644900635022,1.35613023,3016.3,3016.2,0.07036636]
[1644900635423,0.82903,3016.3,3015.7,1.53833412]
[1644900635623,0.82903,3016.3,3015.8,0.07600506]
[1644900635823,0.82903,3016.3,3015.9,0.07036636]
[1644900637669,0.82903,3016.3,3015.9,0.08069128]
[1644900637869,0.82903,3016.3,3016.0,0.07036636]
[1644900638671,0.82903,3016.3,3016.1,0.07036636]
[1644900638871,0.12894472,3016.4,3016.1,0.07036636]
[1644900639075,0.12894472,3016.4,3016.2,0.07036636]
[1644900639273,0.12894472,3016.4,3016.3,0.07036636]
[1644900639872,1.4857516,3016.4,3016.3,0.07036636]
[1644900640072,1.4857516,3016.4,3016.2,0.01032425]
[1644900640371,0.12894472,3016.4,3016.3,0.07036636]
[1644900640571,1.48635421,3016.4,3016.3,0.07036636]
[1644900643223,0.12894472,3016.4,3016.3,0.07036636]
[1644900643524,0.12894472,3016.4,3016.3,0.07600506]
[1644900645394,1.48840522,3016.4,3016.3,0.07600506]
[1644900646593,0.12894472,3016.4,3016.3,0.07600506]
[1644900646993,0.12894472,3016.4,3016.3,0.90483506]
[1644900647190,0.12894472,3016.4,3016.3,0.89919636]
[1644900647391,0.12894472,3016.4,3016.3,0.90483506]
[1644900649028,2.87948776,3016.9,3016.3,0.90483506]
[1644900649230,1.35809904,3016.8,3016.4,0.07036636]
[1644900651233,0.82887,3016.7,3016.4,0.07036636]
[1644900651431,1.35809904,3016.6,3016.4,0.07036636]
[1644900654071,2.92174134,3016.9,3016.4,0.07036636]
[1644900654270,1.35997327,3016.8,3016.4,0.07036636]
[1644900654872,0.02121134,3016.9,3016.6,0.62767244]
[1644900655071,0.02121134,3016.9,3016.7,0.82864]
[1644900655269,0.02121134,3016.9,3016.8,0.07036636]
[1644900655472,1.38875564,3016.9,3016.8,0.07036636]
[1644900656071,1.38875564,3016.9,3016.5,0.0056387]
[1644900656072,1.38875564,3016.9,3016.6,0.07036636]
[1644900656325,1.38875564,3016.9,3016.7,0.07036636]
[1644900656326,1.3675443,3016.8,3016.7,0.07036636]
[1644900656522,1.3675443,3016.8,3016.6,0.07036636]
[1644900656721,1.3675443,3016.7,3016.6,0.07036636]
[1644900658023,1.3675443,3016.7,3016.3,0.62767244]
[1644900658223,1.3675443,3016.7,3016.4,0.0056387]
[1644900658424,2.4865997,3016.9,3016.4,0.0056387]
[1644900658425,1.6577297,3016.9,3016.4,0.0056387]
[1644900658724,1.35394089,3016.8,3016.5,0.07036636]
[1644900658924,1.35394089,3016.8,3016.6,0.07036636]
[1644900660771,2.18283329,3016.8,3016.6,0.07036636]
[1644900660973,1.35394089,3016.7,3016.6,0.07036636]
[1644900661370,1.35394089,3016.7,3016.4,0.07036636]
[1644900661570,1.65773,3016.9,3016.5,0.07036636]
[1644900661770,1.35339253,3016.8,3016.6,0.07036636]
[1644900661970,1.35339253,3016.8,3016.7,0.07036636]
[1644900662170,0.00721684,3017.0,3016.4,3.36475098]
[1644900662375,0.00721684,3017.0,3016.5,0.7036775]
[1644900662572,0.00721684,3017.0,3016.6,3.24847746]
[1644900662771,0.475,3017.3,3016.7,0.07036636]
[1644900662971,0.00721696,3017.0,3016.8,0.07036636]
[1644900663171,0.00721696,3017.0,3016.9,0.07036636]
[1644900663819,1.35258651,3017.1,3016.9,0.07036636]
[1644900664020,1.35980371,3017.1,3016.9,0.07036636]
[1644900664223,0.0072172,3017.1,3016.8,0.07036636]
[1644900664425,0.0072172,3017.1,3016.9,0.07036636]
[1644900664622,1.35221315,3017.0,3016.8,0.82875]
[1644900664822,1.35221315,3017.0,3016.9,0.07034947]
[1644900665223,1.35221315,3017.2,3016.9,0.07034947]
[1644900665424,0.0072172,3017.1,3016.9,0.07034947]
[1644900665624,1.35221315,3017.0,3016.9,0.07034947]
[1644900665828,0.0072172,3017.1,3016.9,4.39906947]
[1644900666025,0.0072172,3017.1,3017.0,0.07034947]
[1644900666228,1.1925,3017.9,3017.1,0.828505]
[1644900666229,0.00384007,3017.8,3017.1,0.828505]
[1644900666422,1.35256898,3017.7,3017.3,0.82853]
[1644900666628,0.03270453,3017.6,3017.4,0.07034947]
[1644900666827,1.35256898,3017.5,3016.9,4.59886244]
[1644900667023,1.35256898,3017.5,3017.0,1.07033838]
[1644900667224,1.35256898,3017.5,3017.4,0.82855]
[1644900667225,1.35640905,3017.5,3017.4,0.82855]
[1644900667495,1.35640905,3017.5,3017.4,0.89888838]
[1644900668096,0.00384007,3017.5,3017.4,0.89888838]
[1644900668298,0.00384007,3017.8,3017.4,0.89888838]
[1644900668496,1.34941787,3017.7,3017.5,0.07033838]
[1644900668699,1.34941787,3017.6,3017.5,0.07033838]
[1644900668896,1.34941787,3017.6,3017.1,3.52910958]
[1644900668897,1.34941787,3017.6,3017.3,0.8286]
[1644900669099,0.0072172,3017.8,3017.4,0.07033838]
[1644900669100,0.00384007,3017.5,3017.4,0.07033838]
[1644900669300,0.01105727,3017.8,3017.5,0.00091039]
[1644900669499,1.34933837,3017.7,3017.5,0.07124877]
[1644900669899,1.34933837,3017.7,3017.6,0.07033838]
[1644900670600,1.34933837,3017.7,3017.5,0.00091039]
[1644900671222,2.17797837,3017.7,3017.5,0.00091039]
[1644900671424,1.34933837,3017.6,3017.5,0.00091039]
[1644900671625,0.01105727,3017.8,3017.5,0.00091039]
[1644900671823,0.0072172,3017.8,3017.5,1.04751039]
[1644900672026,0.0072172,3017.8,3017.6,0.07033838]
[1644900672222,0.00384007,3018.1,3017.6,0.07033838]
[1644900672523,0.00384007,3018.1,3017.7,1.93833677]
[1644900672524,0.0072172,3017.8,3017.7,1.93833677]
[1644900672723,0.0072172,3017.8,3017.7,2.00867515]
[1644900673525,0.00384007,3018.5,3017.7,2.00867515]
[1644900673725,0.0072172,3017.9,3017.8,0.07033838]
[1644900673924,1.35536552,3017.9,3017.8,0.07033838]
[1644900674125,0.0072172,3017.9,3017.8,0.07033838]
[1644900674325,1.34397994,3017.9,3017.7,1.93833677]
[1644900674525,0.01012931,3017.9,3017.8,0.07033003]
[1644900674726,0.00384007,3018.4,3017.9,0.82839]
[1644900674976,3.86224833,3018.7,3017.7,1.11006677]
[1644900674977,0.67195494,3017.8,3017.7,1.11006677]
[1644900675177,0.62195494,3017.8,3017.7,1.18039427]
[1644900675380,0.00384007,3018.6,3017.8,5.1]
[1644900675584,1.31016408,3018.5,3018.0,1.65639]
[1644900675779,1.31016408,3018.5,3018.1,0.0703275]
[1644900675983,0.28267684,3018.9,3018.1,4.59847628]
[1644900675984,0.00384007,3018.4,3018.1,4.59847628]
[1644900676180,0.00721488,3018.4,3018.2,0.0703275]
[1644900676377,0.00721488,3018.4,3018.2,1.0703275]
[1644900676582,0.00721488,3018.4,3018.3,3.6228275]
[1644900676778,0.00721488,3018.4,3018.3,4.6228275]
[1644900676979,0.00384007,3018.8,3018.3,4.5525]
[1644900677178,1.31031301,3018.7,3018.3,4.5525]
[1644900677379,0.00384007,3018.6,3018.3,4.5525]
[1644900677782,0.28267684,3018.9,3018.3,5.38067]
[1644900677783,0.00384007,3018.8,3018.3,5.38067]
[1644900678083,0.00384007,3018.8,3018.4,0.90339442]
[1644900678280,0.00384007,3018.8,3018.5,3.50714169]
[1644900678744,0.00384007,3018.8,3018.5,3.80714169]
[1644900678946,0.00384007,3018.8,3018.5,3.29341436]
[1644900679144,0.00384007,3018.8,3018.6,0.82816]
[1644900679344,0.00384007,3018.8,3018.7,4.27417015]
[1644900679544,1.31451118,3018.8,3018.7,0.96494293]
[1644900680146,0.00384007,3018.8,3018.7,0.96494293]
[1644900680753,1.31119904,3018.8,3018.7,0.96494293]
[1644900681346,1.31119904,3018.8,3018.7,0.96367756]
[1644900681545,1.31127765,3018.8,3018.7,0.96367756]
[1644900681945,1.31127765,3018.8,3018.5,4.06177215]
[1644900682146,0.00384007,3018.8,3018.5,4.06177215]
[1644900682580,1.30269306,3018.7,3018.3,0.82823]
[1644900682778,0.00384007,3018.6,3018.3,0.82823]
[1644900683182,0.28987925,3018.9,3018.1,3.2236]
[1644900683183,1.30198815,3018.5,3018.1,3.2236]
[1644900683385,0.00384007,3018.4,3017.9,1.95745]
[1644900683578,0.00720241,3018.7,3017.6,3.5]
[1644900683778,1.30201417,3018.6,3017.7,0.08169661]
[1644900683979,0.00384007,3018.5,3017.7,0.08169661]
[1644900684380,0.00384007,3018.8,3018.2,0.94715658]
[1644900684584,0.00720241,3018.3,3018.2,0.94715658]
[1644900685381,0.00384007,3018.8,3018.2,0.94715658]
[1644900685581,1.30210289,3018.7,3018.0,0.82832]
[1644900685787,1.30210289,3018.7,3017.8,3.21732429]
[1644900685788,0.00720241,3018.4,3017.7,2.4848108]
[1644900685991,1.30210289,3018.3,3017.6,1.2253]
[1644900686225,0.00384007,3018.2,3017.6,1.2253]
[1644900686427,1.29264386,3018.1,3017.6,1.2253]
[1644900686624,1.29264386,3018.1,3017.5,0.02697039]
[1644900686625,0.00384007,3018.5,3017.5,0.02697039]
[1644900686824,1.475,3018.6,3017.9,1.09219444]
[1644900686825,0.00384007,3018.0,3017.9,1.09219444]
[1644900687025,0.00720241,3018.1,3017.9,1.09219444]
[1644900687930,0.00384007,3018.3,3017.9,1.09219444]
[1644900688127,2.95701509,3018.2,3017.9,1.09219444]
[1644900688324,1.29279878,3018.1,3017.9,1.09219444]
[1644900688528,1.29663885,3018.1,3017.9,1.09219444]
[1644900688726,0.00384007,3018.1,3017.9,1.09219444]
[1644900688924,1.29323437,3018.0,3017.9,1.09219444]
[1644900689129,5.1,3017.9,3016.9,1.9069]
[1644900689328,5.1,3017.9,3016.6,0.59106261]
[1644900689329,25.63207444,3017.8,3016.5,0.0056387]
[1644900689626,1.29323437,3017.7,3016.6,0.09119679]
[1644900689828,3.975,3017.6,3016.6,0.09119679]
[1644900690075,1.29323437,3017.5,3016.6,0.09119679]
[1644900690276,0.475,3017.4,3016.7,1.19098088]
[1644900690479,1.30043678,3017.3,3016.8,0.09119679]
[1644900690676,0.83596961,3017.3,3016.7,1.19098088]
[1644900691081,0.83596961,3017.3,3016.5,0.0056387]
[1644900691278,1.76805082,3017.2,3016.6,0.09122239]
[1644900691478,3.44182027,3017.1,3016.6,0.09122239]
[1644900691678,0.475,3017.0,3016.6,0.09122239]
[1644900692078,3.19909133,3016.9,3016.6,0.09122239]
[1644900692279,0.475,3017.0,3016.6,0.09122239]
[1644900692478,0.475,3017.0,3016.5,0.976554]
[1644900692679,0.475,3017.0,3016.6,0.09122239]
[1644900694924,0.412965,3017.0,3016.6,0.09122239]
[1644900696528,0.412965,3017.0,3016.7,0.08501944]
[1644900696529,4.7,3016.8,3016.7,0.08501944]
[1644900696728,5.175,3016.8,3016.0,1.1991]
[1644900696928,0.475,3016.8,3016.1,0.07035759]
[1644900697129,0.475,3016.8,3015.8,3.1568]
[1644900697130,0.475,3016.8,3016.2,0.07035759]
[1644900697483,0.82888,3016.7,3016.3,0.07035759]
[1644900697683,0.475,3016.6,3016.4,0.07035759]
[1644900697886,0.475,3016.6,3016.5,0.07035759]
[1644900698280,0.475,3016.6,3016.2,0.07035759]
[1644900698481,0.475,3016.6,3016.3,0.07035759]
[1644900698682,0.475,3016.6,3016.4,0.07035759]
[1644900698885,0.475,3016.6,3016.5,0.07035759]
[1644900699082,2.1328343,3016.6,3016.5,0.07035759]
[1644900699282,2.1328343,3016.6,3016.2,0.07035759]
[1644900699482,2.1328343,3016.6,3016.5,0.07035759]
[1644900699681,2.1328343,3016.6,3016.2,0.07035759]
[1644900699882,3.20509259,3016.5,3016.3,0.07035759]
[1644900700082,3.20509259,3016.5,3015.6,1.2421]
[1644900700282,4.03411259,3016.5,3015.7,0.07036228]
[1644900700682,0.8290188,3016.3,3015.7,0.07036228]
[1644900700883,3.98676075,3016.2,3015.7,0.07036228]
[1644900701222,3.98676075,3016.2,3015.6,0.07036228]
[1644900701529,3.98676075,3016.2,3015.8,0.01031771]
[1644900701924,3.98676075,3016.2,3015.9,0.07036228]
[1644900702523,3.98676075,3016.2,3016.0,0.07036228]
[1644900702722,3.30370722,3016.1,3016.0,0.07036228]